Cogmind - Beta 15 *** ADVENTURER MODE // 2025.09.06 @ 15:22:20 Player: Knightshade Result: Destroyed by 61-DE6(R) with Subdweller Machine Gun Performance ------------- Evolutions (0) 0 Regions Visited (2) 400 Robots Destroyed (30) 150 Value Destroyed (703) 703 Prototype IDs (18) 360 Alien Tech Used (0) 0 Bonus (0) 0 TOTAL SCORE: 1613 Bonus ------- None Cogmind --------- Core Integrity 0/250 Matter 191/300 Energy 100/100 System Corruption 1% Temperature Cool (0) Movement Rolling (200) Ox8 Location -10/Subcaves Parts ------- > --- POWER (1) -------- (None) > --- PROPULSION (2) --- Wheel > --- UTILITY (2) ------ Huge Storage Unit Makeshift Light Armor Plating > --- WEAPON (2) ------- EM Pulse Gun Grenade Launcher > --- INVENTORY (25) --- Makeshift Flight Unit Medium Storage Unit Large Storage Unit Medium Matter Pod (100) Improved Terrain Scanner Core Shielding Light Armor Plating Rainbow Chip Medium Laser Medium Laser Subdweller Beam Cannon Assault Rifle Multitool Peak State ------------ > --- POWER ------------ Subdweller Power Source > --- PROPULSION ------- Light Treads Light Treads > --- UTILITY ---------- Huge Storage Unit Makeshift Light Armor Plating > --- WEAPON ----------- Assault Rifle Assault Rifle > --- INVENTORY -------- Wheel Makeshift Flight Unit Medium Storage Unit Large Storage Unit Medium Matter Pod Improved Terrain Scanner Core Shielding Light Armor Plating Rainbow Chip EM Pulse Gun EM Pulse Gun Medium Laser Medium Laser Subdweller Beam Cannon Grenade Launcher Multitool [Rating: 14] Favorites ----------- Power Ion Engine Engine Ion Engine Propulsion Light Treads Treads Light Treads Wheel Wheel Utility Seismic Detector Device Seismic Detector Storage Huge Storage Unit Protection Makeshift Light Armor Plating Weapon Medium Laser Energy Gun Medium Laser Energy Cannon Subdweller Beam Cannon Ballistic Gun Assault Rifle Launcher Grenade Launcher Build | -11 -10 -10 ------- Run | Yrd Mat Sub Slots Evolved . | . . . Power . | . . . Propulsion . | . . . Utility . | . . . Weapon . | . . . Parts Attached 27 | 7 5 15 Power 4 | 1 . 3 Engine 4 | 1 . 3 Core . | . . . Reactor . | . . . Propulsion 6 | 2 1 3 Treads 5 | 2 1 2 Leg . | . . . Wheel 1 | . . 1 Hover . | . . . Flight . | . . . Utility 7 | 2 3 2 Device 1 | 1 . . Storage 4 | 1 3 . Processor . | . . . Hackware . | . . . Protection 2 | . . 2 Artifact . | . . . Weapon 10 | 2 1 7 Energy Gun 6 | 2 1 3 Energy Cannon 1 | . . 1 Ballistic Gun 2 | . . 2 Ballistic Cannon . | . . . Launcher 1 | . . 1 Special Weapon . | . . . Impact Weapon . | . . . Slashing Weapon . | . . . Piercing Weapon . | . . . Special Melee Weapon . | . . . Unidentified Prototypes . | . . . Parts Lost 11 | . . 11 Power 3 | . . 3 Propulsion 4 | . . 4 Utility 1 | . . 1 Weapon 3 | . . 3 Highest Loss Streak 5 | . . 5 To Critical Strikes . | . . . Average Backups 13 | 1 11 15 Power . | . . . Propulsion 3 | . 2 3 Utility 5 | . 4 6 Weapon 4 | . 3 5 Tool/Special . | . . . Unused Backups 12 | . 6 6 Power . | . . . Propulsion 2 | . 1 1 Utility 9 | . 5 4 Weapon . | . . . Tool/Special 1 | . . 1 Average Slot Usage (%) 96 | . 100 93 Engine 10 | . 14 8 Treads 27 | . 28 27 Device 13 | . 14 12 Storage 14 | . 14 14 Energy Gun 26 | . 28 25 Ballistic Gun 1 | . . 2 Peak Build Rating 14 | 7 8 14 Average Rating 8 | 5 7 9 On Entrance 5 | . 7 8 Naked Turns . | . . . Heaviest Build 98 | 14 90 98 Greatest Support 40 | 40 40 40 Greatest Overweight (x) 9 | . 2 9 Average Overweight (x) 1 | . . 2 Largest Inventory Capacity 25 | 8 25 25 Average Capacity 21 | 7 17 25 Most Carried 18 | 4 13 18 Average Carried 13 | 1 11 15 Final Capacity 25 | 8 25 25 Final Carried 13 | 4 13 13 Class Distribution -------------------- 98% | Mutant Dominant Class ---------------- Mutant | -10/Materials Mutant | -10/Subcaves Resources | -11 -10 -10 ----------- Run | Yrd Mat Sub Matter Collected 778 | 270 394 114 Remotely . | . . . Salvage Created 1086 | 131 610 345 Parts 59 | 11 30 18 Haulers Intercepted 2 | . 2 . Recyclers Shooed . | . . . Parts Field Recycled . | . . . Retrieved Matter . | . . . Parts Self-Destructed 7 | . . 7 Prevented . | . . . Kills | -11 -10 -10 ------- Run | Yrd Mat Sub Combat Hostiles Destroyed 21 | . 14 7 Guns 19 | . 13 6 Cannons 1 | . . 1 Classes Destroyed 11 | 2 5 4 Worker 1 | . 1 . Tunneler 2 | 2 . . Hauler 2 | . 2 . Recycler 1 | 1 . . Watcher 3 | . 3 . Swarmer 6 | . 6 . Grunt 8 | . 8 . Sentry 1 | . . 1 Artisan 1 | . . 1 Cobbler 1 | . . 1 Subdweller 6 | . . 6 Best Kill Streak 5 | 2 5 2 Combat Bots Only 4 | . 4 2 Max Kills in Single Turn 1 | 1 1 1 Gunslinging . | . . . Exploded . | . . . Melee . | . . . Uniques/NPCs Destroyed . | . . . Combat | -11 -10 -10 -------- Run | Yrd Mat Sub Hostile Shots Fired 159 | . 67 92 Missed 47 | . 20 27 Hits 112 | . 47 65 Projectile 112 | . 47 65 AOE 5 | . . 5 Critical Strikes 1 | . . 1 Damage Taken 1598 | . 354 1244 Core 258 | . 39 219 Absorbed by Shields . | . . . Ignored by Resistances 457 | . 111 346 Core Remaining (%) 100 | 100 . . Volleys Fired 120 | 4 47 69 Largest 2 | 2 2 2 Hottest 140 | 90 100 140 Shots Fired 236 | 8 96 132 Gun 226 | 8 96 122 Cannon 9 | . . 9 Launcher 1 | . . 1 Special . | . . . Kinetic 32 | . . 32 Thermal 196 | 8 96 92 Explosive 1 | . . 1 Electromagnetic 7 | . . 7 Robot Hit Streak 33 | 6 16 33 Robot Miss Streak 2 | 1 2 2 Penetration Max . | . . . Secondary Targets 2 | . 1 1 Max Gunslinging Chain 1 | . 1 1 Shots Hit Robots 162 | 6 64 92 Core Hits 52 | 4 30 18 Critical Kills 1 | . . 1 Critical Parts Destroyed . | . . . Critical Strikes 14 | . 10 4 Burn 13 | . 10 3 Destroy 1 | . . 1 Melee Attacks . | . . . Impact . | . . . Slashing . | . . . Piercing . | . . . Sneak Attacks . | . . . Combat Hostiles . | . . . Follow-up Attacks . | . . . Damage Inflicted 2135 | 69 835 1231 Guns 1848 | 69 835 944 Cannons 191 | . . 191 Explosions 96 | . . 96 Melee . | . . . Ramming . | . . . Kinetic 179 | . . 179 Thermal 1783 | 69 835 879 Explosive 96 | . . 96 Electromagnetic 77 | . . 77 Impact . | . . . Slashing . | . . . Piercing . | . . . Highest Corruption 1 | . 1 1 Average Corruption 1 | . 1 1 Corruption Purged . | . . . Corruption Blocked . | . . . Effects 30 | . 18 12 Message Errors 8 | . 6 2 Matter Fused 4 | . 3 1 Heat Flow Errors 2 | . . 2 Energy Discharges 4 | . 2 2 Data Loss (minor) 6 | . 3 3 Data Loss (major) 1 | . 1 . Misfires 3 | . 2 1 Alerts 2 | . 1 1 Overload Shots . | . . . Overflow Damage 4 | . . 4 Projectiles . | . . . Explosions 4 | . . 4 Melee . | . . . Knockbacks . | . . . Impact . | . . . Kinetic . | . . . Secondary . | . . . Self-Inflicted Damage 18 | . . 18 Shots 1 | . . 1 Rammed . | . . . Targets Rammed . | . . . Kicked . | . . . Crushed . | . . . Highest Temperature 403 | 60 403 171 Average Temperature 90 | 24 103 30 Received Heat Transfer 237 | . 141 96 Effects 2 | . 2 . Shutdowns 1 | . 1 . Matter Decay 1 | . 1 . Siege Activations . | . . . Martial Activations . | . . . Shielding Activations . | . . . Robots Disrupted . | . . . Combat Hostiles . | . . . Robots Corrupted . | . . . Combat Hostiles . | . . . Parts Fried . | . . . Impact Corruptions . | . . . Robots Melted 1 | . 1 . Combat Hostiles 1 | . 1 . Parts Melted 13 | . 9 4 Heat Transferred 5396 | 186 3219 1991 Parts Sabotaged . | . . . Parts Stolen . | . . . Parts Stripped . | . . . Power Chain Reactions . | . . . Alert | -11 -10 -10 ------- Run | Yrd Mat Sub Maximum Alert Level . | . . . Low Security (%) 100 | 100 100 . Level 1 . | . . . Level 2 . | . . . Level 3 . | . . . Level 4 . | . . . Level 5 . | . . . High Security . | . . . Max Security . | . . . Peak Influence 80 | 5 80 . Initial . | . . . Average 13 | 1 14 . Influence Increases 533 | 15 498 20 Destroy 0b10 Robot/C 300 | . 280 20 Destroy 0b10 Robot/NC 45 | 15 30 . Destroy Leader 80 | . 80 . Successful Hack 32 | . 32 . Select Force Hacks 60 | . 60 . Destroy Structure 1 | . 1 . Lose Combat Pursuer 15 | . 15 . Influence Decreases 533 | 15 498 20 Time Decay 533 | 15 498 20 Squads Dispatched 4 | . 4 . Investigation 4 | . 4 . Extermination . | . . . Reinforcement . | . . . Assault . | . . . Garrison . | . . . Intercept . | . . . Searches Triggered . | . . . Construction Impeded . | . . . Haulers Reinforced . | . . . Active Scanning Responses . | . . . Cargo Convoy Interrupts . | . . . Stealth | -11 -10 -10 --------- Run | Yrd Mat Sub Distress Signals 1 | . 1 . Communications Jammed . | . . . Distress Signals . | . . . Times Spotted 32 | . 23 9 Peak Tracking Total 3 | . 3 2 Tactical Retreats 1 | . 1 . Traps | -11 -10 -10 ------- Run | Yrd Mat Sub Traps Triggered 3 | . 3 . Indirectly . | . . . Trap Hack Attempts . | . . . Triggered . | . . . Disarmed . | . . . Reprogrammed . | . . . Reused . | . . . Traps Extracted . | . . . Installed . | . . . Triggered . | . . . Machines | -11 -10 -10 ---------- Run | Yrd Mat Sub Machines Disabled 1 | . . 1 Max in Single Turn 1 | . . 1 Machines Repaired . | . . . Machines Dismantled . | . . . Machines Sabotaged . | . . . Overloaded Fab Kills . | . . . Hacking | -11 -10 -10 --------- Run | Yrd Mat Sub Machines Accessed 11 | . 10 1 Terminals 8 | . 8 . Fabricators . | . . . Repair Stations . | . . . Recycling Units 2 | . 2 . Scanalyzers . | . . . Garrison Access . | . . . Total Hacks 49 | . 40 9 Successful 44 | . 35 9 Failed 5 | . 5 . Catastrophic 1 | . 1 . Database Lockouts . | . . . Manual 25 | . 25 . Terminals 35 | . 35 . Fabricators . | . . . Repair Stations . | . . . Recycling Units 5 | . 5 . Scanalyzers . | . . . Garrison Access . | . . . Terminal Hacks 28 | . 19 9 Record 9 | . 1 8 Prototype ID Bank 9 | . 9 . Emergency Access Points 1 | . 1 . Terminal Index 2 | . 2 . Disarm Traps 1 | . 1 . Dispatch Records 1 | . 1 . Hauler Manifests 1 | . 1 . Registered Components 1 | . 1 . Zone Layout 2 | . 2 . Proto ID Catalog 1 | . . 1 Fabricator Hacks . | . . . Repair Station Hacks . | . . . Recycling Unit Hacks 3 | . 3 . Report Inventory 2 | . 2 . Retrieve Components 1 | . 1 . Scanalyzer . | . . . Garrison Access Hacks . | . . . Unauthorized Hacks 13 | . 13 . Terminals 11 | . 11 . Botnet 6 | . 6 . Skim 5 | . 5 . Fabricators . | . . . Repair Stations . | . . . Recycling Units 2 | . 2 . Tunnel 2 | . 2 . Scanalyzers . | . . . Garrison Access . | . . . Data Cores Recovered . | . . . Used . | . . . Hacking Detections 7 | . 7 . Full Trace Events . | . . . Feedback Events . | . . . Feedback Blocked . | . . . Robot Schematics Acquired . | . . . Robots Built . | . . . Authchips . | . . . Time . | . . . Total Robot Build Rating . | . . . Part Schematics Acquired . | . . . Parts Built . | . . . Authchips . | . . . Time . | . . . Total Part Build Rating . | . . . Parts Repaired . | . . . Time . | . . . Parts Recycled . | . . . Recycled Matter . | . . . Retrieved Matter . | . . . Retrieved Components 10 | . 10 . Parts Scanalyzed . | . . . Part Schematics Acquired . | . . . Parts Damaged . | . . . Bothacking | -11 -10 -10 ------------ Run | Yrd Mat Sub Used RIF Installer . | . . . Robots Hacked . | . . . Non-combat . | . . . Combat . | . . . Robot Hacks Applied . | . . . Relay Couplers Released . | . . . Fabnet Peak Effective % . | . . . Robots Rewired . | . . . Allies Hacked . | . . . Hacks Repelled . | . . . Allies | -11 -10 -10 -------- Run | Yrd Mat Sub Total Allies . | . . . Largest Group . | . . . Highest-Rated Group . | . . . Highest-Rated Ally . | . . . Total Orders . | . . . Ally Attacks . | . . . Total Damage . | . . . Kills . | . . . Allies Corrupted . | . . . Allies Melted . | . . . Intel | -11 -10 -10 ------- Run | Yrd Mat Sub Active Infowar (turns) 4310 | 34 2136 2140 Seismic 4310 | 34 2136 2140 Robot Analysis Total . | . . . Derelict Logs Recovered 1 | . . 1 Drone Launches . | . . . Drone Recoveries . | . . . Exploration | -11 -10 -10 ------------- Run | Yrd Mat Sub Turns Passed 4595 | 114 2136 2345 Spaces Moved 1543 | 55 865 623 Core 3 | 3 . . Treads 1530 | 52 865 613 Legs . | . . . Wheels 10 | . . 10 Hover . | . . . Flight . | . . . Fastest Speed 50 | 50 160 215 Average Speed 255 | 154 216 318 Slowest Speed 320 | 160 320 320 Overloaded Moves . | . . . Propulsion Burnouts . | . . . Robots Hopped . | . . . Potential Cave-ins . | . . . Cave-ins Triggered . | . . . Exploration Rate (%) 45 | 4 98 35 Regions Visited 2 Branch Regions 1 Pre-discovered Areas 4 | . 4 . Known Exits Taken 1 | . 1 . Unknown Exits Taken 1 | 1 . . Scrap Searched 4 | . . 4 Spaces Dug . | . . . Terrain Destroyed 7 | . . 7 Melee . | . . . Projectile . | . . . AOE 7 | . . 7 Terrain Rammed . | . . . Walls Destroyed . | . . . Machines Disabled . | . . . Actions | -11 -10 -10 --------- Run | Yrd Mat Sub Total 1964 | 73 1041 850 Wait 242 | 4 104 134 Move 1541 | 54 864 623 Hop . | . . . Pick Up 25 | 4 13 8 Fast Attach 8 | 7 . 1 Attach 8 | . . 8 Detach . | . . . Swap 11 | . 5 6 Drop 9 | . 8 1 Fire 120 | 4 47 69 Melee . | . . . Ram . | . . . Kick . | . . . Crush . | . . . Escape Stasis . | . . . Rewire . | . . . Trap . | . . . Miscellaneous . | . . . Route ------- -11/Scrapyard -10/Materials (discovered 6 exits: *Mat x3 / [*Min x2] / *Sub) -10/Subcaves (discovered 1 exit: [*Mat]) History --------- Turn | Location | Event 4 | -11/Scrapyard | Discovered new exit (range 15) 115 | -11/Scrapyard | Entered Materials 199 | -10/Materials | Discovered new exit (range 15) 307 | -10/Materials | Build established: Mutant 364 | -10/Materials | Discovered new exit (range 7) 764 | -10/Materials | Discovered new exit (range 11) 864 | -10/Materials | Discovered new exit (range 4) 1315 | -10/Materials | Identified exit to Subcaves 1375 | -10/Materials | Identified exit to Materials 1375 | -10/Materials | Learned location of 1 exit from Materials 1423 | -10/Materials | Learned location of 2 exits from Mines 1463 | -10/Materials | Learned location of 1 exit from Recycling 1495 | -10/Materials | Learned 2 Mines zone layouts 1537 | -10/Materials | Learned location of Mines (-9) 2251 | -10/Materials | Entered Subcaves 2252 | -10/Subcaves | Approached by a straggling Scientist 3808 | -10/Subcaves | Discovered new exit (range 12) 4116 | -10/Subcaves | Visited 4L-MR0's lab 4153 | -10/Subcaves | Found Prototype Processor 4170 | -10/Subcaves | Identified Rainbow Chip 4380 | -10/Subcaves | Lost 3 parts (1p2n) 4394 | -10/Subcaves | Core integrity fell below 50% 4572 | -10/Subcaves | Core integrity fell below 20% 4596 | -10/Subcaves | Destroyed by 61-DE6(R) with Subdweller Machine Gun Last Messages --------------- 04451_ Found Mak. Light Armor Plating. 04451_ Found 32 Matter. 04452_ Acquired 24 matter. 04469_ Searching scrap... 04469_ Found Scrap Shield. 04469_ Found 68 Matter. 04470_ Acquired 10 matter. 04519_ System corrupted: Energy discharge (-56). 04526_ VY-53N(R) destroyed. 04536_ Lgt. Treads destroyed. 04537_ Subatomizers dissect the Disposable Heat Sink. 04550_ Lgt. Treads destroyed. 04558_ Subatomizers dissect the Disposable Heat Sink. 04567_ Assault Rifle destroyed. 04586_ Critical hit (Destroy). 04590_ EM Pulse Gun destroyed. 04592_ 61-DE6(R) misfires. 04594_ 61-DE6(R) IFF system glitched. 04596_ Sub. Power Source destroyed. 04596_ Destroyed Sub. Power Source. Map ----- +----------------------------------------------------+ | ?????????????????????# ##### # #?????????? | | ?????????????????????# #??# ## #?????????? | | ??????????????????????# #??# ##?????????? | | ??????????????????????# #### #??????????? | | ??????????????????????# ##??????????? | | ??????????????#####???# ####??????????? | | ??????????#####"%"###?# ### ##?????????? | | ??????????# #### ""### ### #?????????? | | ??????????# "####" ## # #? #?????????? | | ??????????## ## ###" ### ## #?????????? | | ??????????#" ### #"" #?# #??????????? | | ??????????#"" #?# #?# ##??????????? | | ??????????#"X #?# #?# ##??????????? | | ??????????#"" #?# #" #?# #??????????? | | ??????????#" #### ## ### ##??????????? | | ??????????#" ##" # ## #???????????? | | ??????????# #+## & "## ## #???????????? | | ??????????#""# ##% "## # #???????????? | | ??????????#### "### ##??????????? | | ?????????????# "" "### ##?????????? | | ?????????????#######?### #?????????? | | ?????????????????????# ## ##?????????? | | ?????????????????????## ### #??????????? | | ??????????????????????## ### ####??????????? | | ???????????????????????# # #?????????????? | | ???????????????????????##@ # ## ####??????????? | | ???????????#######??????##RR # ## "#??????????? | | ???????????# #! #???###?# # # """#??????????? | | ???????????#% %#?### ### # # """"#??????????? | | ???????????##" ###?#"# # " "####??????????? | | ???????????### ##### "## # "#?????????????? | | ?????????### # ## ##" # # "#?????????????? | | ??????####! ## " ####??????????? | | ??????# &%& #" #??????????? | | ??????## ### ##"<" ##??????????? | | ???????????### ## "" #???????????? | | ?????????????## & ## "##???????????? | | ??????????????## #######????????????? | | ???????????????## " " #??????????????????? | | ????????????????##""" #?????????????????? | | ?????????????????#"""""## "" ???????????????? | | ?????????????????#"""""" ""???????????????? | | ?????????????????###"""" "???????????????? | | ???????????????????#""" #??????????????? | | ????????????????????#??" ## ##??????????????? | | ????????????????????????"##? ##???????????????? | | ????????????????????????#??? #????????????????? | | ???????????????????????????? ????????????????? | | ?????????????????????????????####????????????????? | | ?????????????????????????????????????????????????? | +----------------------------------------------------+ Best States ------------- Heat Dissipation 25 Energy Generation 15 Energy Capacity 250 Matter Stores 300 Matter Capacity 300 Sight Range 16 Terrain Scan Density 10 Armor Coverage 150 Resistance: KI 20 Resistance: TH 20 Resistance: EX 20 Resistance: EM 20 Resistance: I 20 Resistance: S 20 Resistance: P 20 Evasion (%) 40 Recoil Reduction 2 Offensive Hacking 10 Item Schematics ----------------- None Robot Schematics ------------------ None Fabricated ------------ Nothing Repaired ---------- Nothing Alien Tech Used ----------------- None Achievements -------------- None Challenges ------------ None Game ------ Seed ChargeSuperchargedMinigun Manual? 0 Play Time 01:08:14 Cumulative 131.0 hours Start 2025.09.06 @ 00:01:22 End 2025.09.06 @ 15:22:20 Sessions 1 Manual Loads 0 Difficulty Adventurer Special Mode None Game No. 93 Rogue 0 Adventurer 93 Explorer 0 Win Type - Total 0 Types 0/0/0/0/0/0/0/0/0/0 Lore% 33 Gallery% 45 Achievement% 39 Wizard Run 0 Options --------- Layout 0 ASCII 0 Keyboard 0 Movement Mouse Keybinds 0 Fullscreen 1 Font 18/SmallcapsGlow Map View 76x50 Zoom Use 0% Tactical HUD 1 Map Filters NONE Filters NONE Steam 1 RUN: eab57cf5-ce4d-44c1-a932-68326f67cb6f